bitfinex-derivatives/quotes_ETHF0:USTF0_20250604
["timestamp","ask_amount","ask_price","bid_price","bid_amount"]
[1749066398328,42.6658,2633.7,2633.6,0.75905]
[1749066398528,42.6658,2633.7,2633.6,18.18205]
[1749066400134,43.42483,2633.7,2633.6,0.75905]
[1749066400426,42.6658,2633.7,2633.6,18.17505]
[1749066400831,42.6658,2633.7,2633.6,17.417]
[1749066401036,42.6658,2633.7,2633.5,0.75907]
[1749066401235,43.42482,2633.7,2633.6,17.417]
[1749066401729,3.2078,2633.8,2633.6,18.17605]
[1749066401934,3.2078,2634.1,2634.0,0.75894]
[1749066402132,3.2078,2634.1,2634.0,22.77594]
[1749066402329,3.2078,2634.1,2633.8,2.51377451]
[1749066402330,44.0078,2634.1,2633.9,0.75895]
[1749066402528,3.37755,2634.0,2633.9,0.75897]
[1749066402729,0.75897,2633.9,2633.8,17.53770451]
[1749066402924,1.3163,2633.9,2633.8,18.29670451]
[1749066404128,1.3023,2634.0,2633.9,0.75897]
[1749066405331,2.5345,2634.0,2633.9,0.75897]
[1749066405835,1.3023,2634.0,2633.9,0.75897]
[1749066406739,2.6071,2634.0,2633.9,0.75897]
[1749066407038,3.36604,2634.0,2633.9,0.75897]
[1749066407237,0.75897,2633.9,2633.8,0.00570451]
[1749066407435,2.06377,2633.9,2633.8,0.00570451]
[1749066407639,1.89752,2633.8,2633.3,0.75913]
[1749066407834,3.96691,2633.5,2633.4,17.522]
[1749066408039,3.96691,2633.5,2633.4,18.28111]
[1749066408236,44.76691,2633.5,2633.4,18.28111]
[1749066409435,44.0078,2633.5,2633.4,18.28111]
[1749066410544,44.76688,2633.5,2633.4,18.28111]
[1749066410836,44.76688,2633.5,2633.4,17.522]
[1749066411041,44.76688,2633.5,2633.3,0.75911]
[1749066411042,0.75911,2633.4,2633.3,0.75911]
[1749066411335,3.35591,2633.4,2633.3,18.27211]
[1749066411738,4.24982863,2633.4,2633.3,18.27211]
[1749066411939,3.35591,2633.4,2633.3,18.27211]
[1749066412326,3.35591,2633.4,2633.3,0.75911]
[1749066412531,3.35591,2633.4,2633.3,18.26811]
[1749066413541,4.2505521,2633.4,2633.3,18.26811]
[1749066414037,4.2505521,2633.4,2633.3,18.26211]
[1749066415531,4.2505521,2633.4,2633.3,17.503]
[1749066415739,0.75914,2633.3,2633.2,4.56670451]
[1749066416037,1.6537821,2633.3,2633.2,4.56670451]
[1749066416342,2.9177821,2633.3,2633.2,4.56670451]
[1749066417234,2.9177821,2633.3,2633.2,0.00570451]
[1749066417536,0.75914,2633.3,2633.2,0.00570451]
[1749066417844,40.8,2633.5,2633.4,0.75911]
[1749066418140,41.55908,2633.5,2633.4,22.83911]
[1749066418737,0.75911,2633.4,2633.3,0.6237]
[1749066418934,0.75914,2633.3,2633.2,4.56670451]
[1749066419136,0.75914,2633.3,2633.2,22.09170451]
[1749066419436,0.75914,2633.3,2633.2,5.32587451]
[1749066419637,0.75914,2633.3,2633.2,22.84987451]
[1749066420543,0.75913,2633.4,2633.3,0.75911]
[1749066420944,0.75914,2633.3,2633.2,18.28885451]
[1749066421145,0.75914,2633.3,2633.2,17.52970451]
[1749066422039,0.75914,2633.3,2633.2,18.28887451]
[1749066422846,0.75913,2633.4,2633.3,0.75911]
[1749066423344,0.75914,2633.3,2633.2,18.28885451]
[1749066425752,0.82645476,2633.3,2633.2,18.28885451]
[1749066426946,0.06731476,2633.3,2633.2,18.28885451]
[1749066427351,0.06731476,2633.3,2633.2,23.28885451]
[1749066429248,0.06731476,2633.3,2633.2,18.28885451]
[1749066431144,0.06731476,2633.3,2633.2,0.76485451]
[1749066431450,0.06731476,2633.3,2633.2,18.26385451]
[1749066434448,0.06731476,2633.3,2633.2,0.76485451]
[1749066434652,0.06731476,2633.3,2633.2,18.25185451]
[1749066434955,0.06731476,2633.3,2633.2,0.76485451]
[1749066435148,0.96823926,2633.3,2633.2,17.87075451]
[1749066435858,0.96823926,2633.3,2633.0,6.31886]
[1749066435859,13.73703926,2633.3,2632.4,4.561]
[1749066436154,1.89836,2632.6,2632.4,17.517]
[1749066436360,41.7009245,2632.5,2632.4,17.517]
[1749066436656,42.4602945,2632.5,2632.4,17.517]
[1749066436855,41.7009245,2632.5,2632.4,18.2764]
[1749066439455,40.8,2632.5,2632.4,18.2764]
[1749066440951,41.75819015,2632.5,2632.4,18.2624]
[1749066441155,41.75819015,2632.5,2632.2,3.21350451]
[1749066441354,4.25498539,2632.4,2632.3,17.505]
[1749066441657,3.49557539,2632.4,2632.3,18.26443]
[1749066443054,3.49557539,2632.4,2632.3,18.26143]
[1749066443757,3.49557539,2632.4,2632.3,0.75943]
[1749066443758,2.6047,2632.4,2632.3,0.75943]
[1749066443953,3.49386547,2632.4,2632.3,18.25743]
[1749066446260,3.49386547,2632.4,2632.3,0.75943]
[1749066446457,3.49386547,2632.4,2632.3,18.25143]
[1749066447155,3.49386547,2632.4,2632.3,18.77719618]
[1749066447558,3.49386547,2632.4,2632.3,18.77720222]
[1749066447859,3.48285072,2632.4,2632.3,18.25143]
[1749066448256,2.6047,2632.4,2632.3,18.25143]
[1749066448565,3.3641,2632.4,2632.3,18.25143]
[1749066449461,3.3641,2632.4,2632.3,18.24143]
[1749066449655,0.75943,2632.3,2632.2,18.24716451]
[1749066449856,2.07813,2632.3,2632.2,18.24716451]
[1749066450263,2.07813,2632.3,2632.2,17.48770451]
[1749066450459,2.07813,2632.3,2632.2,18.01417107]
[1749066450763,2.07813,2632.3,2632.2,0.00570451]
[1749066451165,2.07813,2632.3,2632.2,17.48870451]
[1749066451556,2.07813,2632.3,2632.2,0.00570451]
[1749066451758,2.07813,2632.3,2632.2,17.48670451]
[1749066452057,2.95568968,2632.3,2632.2,17.48670451]
[1749066453064,2.95543184,2632.3,2632.2,17.48670451]
[1749066453369,2.95530963,2632.3,2632.2,17.48670451]
[1749066453862,2.95531525,2632.3,2632.2,17.48670451]
[1749066456158,3.02263001,2632.3,2632.2,17.48670451]
[1749066458371,3.02263001,2632.3,2632.2,0.00570451]
[1749066462272,1.70393001,2632.3,2632.2,0.00570451]
[1749066463679,2.90563001,2632.3,2632.2,0.00570451]
[1749066466073,1.70393001,2632.3,2632.2,0.00570451]
[1749066470788,1.70393001,2632.3,2632.2,0.53938132]
[1749066470980,1.70393001,2632.3,2632.2,0.00570451]
[1749066471688,1.70393001,2632.3,2632.2,0.53887232]
[1749066471983,1.70393001,2632.3,2632.2,0.00570451]
[1749066472587,1.70393001,2632.3,2632.2,0.5389059]
[1749066472793,2.95383001,2632.3,2632.2,0.00570451]
[1749066473086,43.75383001,2632.3,2632.2,0.00570451]
[1749066473283,1.89876,2632.1,2631.7,4.557]
[1749066473483,0.75957,2631.8,2631.7,4.557]
[1749066473686,0.7596,2631.7,2631.6,17.425]
[1749066473879,0.75963,2631.6,2631.5,2.6061]
[1749066474079,42.43681525,2631.6,2631.5,20.79176]
[1749066475589,42.43681525,2631.6,2631.5,20.78876]
[1749066476090,0.75969,2631.4,2631.3,0.00570451]
[1749066476281,1.63441074,2631.4,2631.3,0.00570451]
[1749066476482,1.63441074,2631.4,2631.3,0.76542451]
[1749066476883,1.63441074,2631.4,2631.3,1.14562451]
[1749066478685,1.63441074,2631.4,2631.3,0.38590451]
[1749066479691,1.63441074,2631.4,2631.3,1.14562451]
[1749066480485,0.75969,2631.4,2631.3,1.14562451]
[1749066480690,1.62613504,2631.4,2631.3,1.14562451]
[1749066481295,1.62613504,2631.4,2631.3,0.76542451]
[1749066482188,1.62613504,2631.4,2631.3,0.00570451]
[1749066482690,1.62613504,2631.4,2631.3,0.76542451]
[1749066485091,1.62519835,2631.4,2631.3,0.00570451]
[1749066485293,0.86550835,2631.4,2631.3,0.76542451]
[1749066485493,0.93282311,2631.4,2631.3,0.76542451]
[1749066486498,1.69251311,2631.4,2631.3,0.76542451]
[1749066490396,1.69251311,2631.4,2631.3,0.00570451]
[1749066490994,1.69251311,2631.4,2631.3,0.76542451]
[1749066491200,1.69251311,2631.4,2631.3,0.00570451]
[1749066491504,3.56171311,2631.4,2631.3,0.00570451]
[1749066492100,0.75986,2630.8,2630.7,3.588]
[1749066492397,1.62519614,2630.8,2630.7,0.3802]
[1749066492603,42.42519614,2630.8,2630.7,0.3802]
[1749066492901,42.42519614,2630.8,2630.7,1.14009]
[1749066493999,42.42519614,2630.8,2630.7,0.3802]
[1749066495102,42.42519614,2630.8,2630.7,1.14009]
[1749066496202,42.42519614,2630.8,2630.7,0.3802]
[1749066496902,0.75989,2630.7,2630.6,0.3802]
[1749066497400,0.75992,2630.6,2630.5,18.96372451]
[1749066497600,41.55992,2630.6,2630.5,18.96372451]
[1749066498399,40.8,2630.6,2630.5,18.96372451]
[1749066498703,41.55992,2630.6,2630.5,18.96372451]
[1749066498899,40.8,2630.6,2630.5,18.96372451]
[1749066499103,41.55992,2630.6,2630.5,18.96372451]
[1749066499802,41.55992,2630.6,2630.5,18.58352451]
[1749066500892,40.8,2630.6,2630.5,18.58352451]
[1749066501101,40.8,2630.6,2630.5,18.58452451]
[1749066501502,40.8,2630.6,2630.5,1.17352451]
[1749066504414,42.42903669,2630.6,2630.5,1.17352451]
[1749066507007,42.42903669,2630.6,2630.5,17.82559451]
[1749066507207,42.42913046,2630.6,2630.5,18.58554451]
[1749066510014,42.42913046,2630.6,2630.5,17.82559451]
[1749066510310,42.42913046,2630.6,2630.5,18.58554451]
[1749066510511,42.42913046,2630.6,2630.5,17.82559451]
[1749066512709,42.42913046,2630.6,2630.5,18.58554451]
[1749066512910,42.42913046,2630.6,2630.5,17.82559451]
[1749066513607,42.42913046,2630.6,2630.5,0.41359451]
[1749066513808,45.63693046,2630.6,2630.5,0.41359451]
[1749066514007,45.63985329,2630.6,2630.5,0.41359451]
[1749066516118,45.70716805,2630.6,2630.5,0.41359451]
[1749066516413,54.45043415,2630.6,2629.4,4.503]
[1749066516613,54.45043415,2630.6,2629.3,0.6014]
[1749066516614,3.2078,2629.7,2629.3,0.6014]
[1749066516815,3.80059,2630.0,2629.1,4.503]
[1749066516816,0.76032,2629.2,2629.1,4.503]
[1749066517114,0.37997,2628.7,2628.6,0.6014]
[1749066517314,0.37997,2628.7,2628.6,22.5264]
[1749066517524,0.76045,2628.8,2628.7,0.76045]
[1749066517817,0.76052,2628.6,2628.4,3.97404451]
[1749066518007,3.2078,2628.8,2628.5,0.6014]
[1749066518213,40.8,2628.6,2628.5,19.2926]
[1749066518615,41.5605,2628.6,2628.5,19.2926]
[1749066519020,40.8,2628.6,2628.5,1.8036]
[1749066519221,0.76053,2628.5,2628.4,3.21350451]
[1749066519519,0.76053,2628.5,2628.4,0.00570451]
[1749066519714,0.76064,2628.1,2628.0,3.2078]
[1749066519918,0.76064,2628.1,2627.8,4.504]
[1749066519919,3.2078,2628.3,2627.8,22.0]
[1749066520121,0.76065,2628.1,2627.9,0.7607]
[1749066520317,0.76065,2628.1,2627.9,2.6939]
[1749066520517,0.76066,2628.1,2627.9,1.9332]
[1749066520817,0.76066,2628.1,2628.0,17.556]
[1749066521720,0.76066,2628.1,2628.0,18.31666]
[1749066521721,0.76064,2628.1,2628.0,18.31666]
[1749066522718,0.76064,2628.1,2628.0,17.556]
[1749066523316,0.76064,2628.1,2627.9,2.69388]
[1749066523517,3.2078,2628.0,2626.9,3.2078]
[1749066523722,0.7609,2627.2,2627.1,1.8929]
[1749066524134,41.5609,2627.2,2627.1,1.8929]
[1749066524320,41.5609,2627.2,2627.1,2.42542397]
[1749066524622,0.76093,2627.1,2627.0,5.1272]
[1749066524823,0.76093,2627.1,2627.0,22.7222]
[1749066525230,0.76093,2627.1,2627.0,0.6222]
[1749066525423,41.56092,2627.2,2627.0,22.7252]
[1749066525727,40.8,2627.2,2627.1,2.56881501]
[1749066525923,40.8,2627.2,2627.1,24.66920981]
[1749066526126,40.8,2627.2,2627.1,24.13823]
[1749066526329,40.8,2627.2,2627.1,24.66920625]
[1749066526524,40.8,2627.2,2627.1,24.66891658]
[1749066526730,40.8,2627.2,2627.1,24.13823]
[1749066527230,40.8,2627.2,2627.1,24.66891891]
[1749066527531,40.8,2627.2,2627.1,24.13823]
[1749066528428,40.8,2627.2,2627.1,24.66588287]
[1749066528626,40.8,2627.2,2627.1,0.76093]
[1749066528827,0.76096,2627.0,2626.9,7.7148]
[1749066529132,0.76096,2627.0,2626.9,22.69267693]
[1749066529324,0.76096,2627.0,2626.9,22.69269341]
[1749066529625,0.76096,2627.0,2626.9,22.68983837]
[1749066529835,3.96875,2627.1,2626.9,22.92297]
[1749066530032,3.2078,2627.1,2627.0,0.76096]
[1749066530629,3.2078,2627.1,2626.9,22.162]
[1749066530630,3.2078,2627.1,2626.9,22.92297]
[1749066530830,3.2078,2627.1,2626.9,22.162]
[1749066531029,3.96873,2627.1,2627.0,0.76096]
[1749066531331,3.2078,2627.1,2627.0,0.76096]
[1749066531731,3.96873,2627.1,2627.0,0.76096]
[1749066532124,3.2078,2627.1,2627.0,0.76096]
[1749066534529,41.56092,2627.2,2626.9,22.162]
[1749066534530,40.8,2627.2,2627.1,0.76093]
[1749066534928,0.00570451,2627.4,2627.3,0.76087]
[1749066535125,0.00570451,2627.4,2627.3,22.92287]
[1749066535530,0.00570451,2627.4,2627.3,24.22887]
[1749066535929,39.00570451,2627.4,2627.3,24.22887]
[1749066536431,39.00570451,2627.4,2627.3,0.76087]
[1749066536637,39.00570451,2627.4,2627.3,23.04387]
[1749066537234,39.00570451,2627.4,2627.3,23.05387]
[1749066537636,39.00570451,2627.4,2627.3,24.33417]
[1749066538735,0.00570451,2627.4,2627.3,29.33417]
[1749066539429,0.07301927,2627.4,2627.3,29.33417]
[1749066540337,0.00570451,2627.4,2627.3,29.33417]
[1749066540538,0.00570451,2627.4,2627.3,29.33117]
[1749066541436,0.07301927,2627.4,2627.3,29.33117]
[1749066541631,9.27e-06,2627.4,2627.3,29.33117]
[1749066542033,9.27e-06,2627.4,2627.3,29.86389514]
[1749066542232,9.27e-06,2627.4,2627.3,29.86389042]
[1749066542432,39.0,2627.8,2627.7,0.76076]
[1749066542632,39.0,2627.8,2627.7,23.04276]
[1749066543139,39.0,2627.8,2627.7,23.66486]
[1749066543637,39.0,2627.8,2627.7,28.66486]
[1749066544031,39.0,2627.8,2627.7,29.19904559]
[1749066544226,39.0,2627.8,2627.7,28.66486]
[1749066544738,39.0,2627.8,2627.7,29.72234379]
[1749066545141,39.0,2627.8,2627.7,12.07434379]
[1749066545436,39.0,2627.8,2627.7,24.70811719]
[1749066545628,39.0,2627.8,2627.7,23.65386]
[1749066545836,39.0,2627.8,2627.7,25.03972944]
[1749066546139,39.0,2627.8,2627.7,6.01686]
[1749066546334,39.0,2627.8,2627.7,24.17806896]
[1749066546540,39.0,2627.8,2627.7,24.71165135]
[1749066547038,39.0,2627.8,2627.7,24.18444239]
[1749066547237,39.0,2627.8,2627.7,24.18441401]
[1749066547430,0.00570451,2628.0,2627.9,0.7607]
[1749066547636,0.00570451,2628.0,2627.9,4.50203304]
[1749066547930,39.00570451,2628.0,2627.9,4.50201762]
[1749066548131,39.00570451,2628.0,2627.9,4.82721679]
[1749066548333,39.00570451,2628.0,2627.9,4.82721687]
[1749066548538,39.00570451,2628.0,2627.9,4.29370117]
[1749066548739,39.00570451,2628.0,2627.9,4.827216]
[1749066548939,39.00570451,2628.0,2627.9,4.50191562]
[1749066549237,39.00570451,2628.0,2627.9,4.50191565]
[1749066549443,39.00570451,2628.0,2627.9,4.29323695]
[1749066549742,39.00570451,2628.0,2627.9,3.9685]
[1749066550242,39.00570451,2628.0,2627.9,4.82695549]
[1749066550643,0.00570451,2628.0,2627.9,9.82500037]
[1749066550835,0.6017,2628.5,2628.4,0.76055]
[1749066551041,0.6017,2628.5,2628.4,23.01155]
[1749066551240,39.6017,2628.5,2628.4,23.01155]
[1749066551438,39.6017,2628.5,2628.4,23.54341349]
[1749066551739,39.6017,2628.5,2628.4,23.54341346]
[1749066552138,39.6017,2628.5,2628.4,23.01155]
[1749066552532,4.51e-06,2628.7,2628.6,0.7605]
[1749066552734,0.6472,2629.4,2628.7,1.90113]
[1749066553041,39.0,2629.3,2629.0,3.2078]
[1749066553242,0.76032,2629.2,2629.1,22.3]
[1749066553537,1.3285,2629.2,2629.1,23.5920795]
[1749066553934,39.0,2629.3,2629.2,0.76032]
[1749066555040,39.0,2629.3,2629.2,1.42362]
[1749066556944,0.00570451,2629.4,2629.3,0.76029]
[1749066557243,39.00570451,2629.4,2629.3,3.96809]
[1749066558340,3.2078,2629.9,2629.3,12.00916]
[1749066558541,3.96773,2630.6,2630.4,0.75995]
[1749066558845,41.05447,2630.5,2630.3,0.76]
[1749066559145,40.2945,2630.5,2630.4,23.15198]
[1749066559642,41.05445,2630.5,2630.4,22.392]
[1749066560642,40.2945,2630.5,2630.4,23.15198]
[1749066560840,40.2945,2630.5,2630.4,23.14298]
[1749066562642,41.05445,2630.5,2630.4,23.14298]
[1749066562850,0.76,2630.3,2630.2,0.00570451]
[1749066563042,0.76,2630.3,2630.2,4.63670451]
[1749066563348,0.76,2630.3,2630.2,0.76573451]
[1749066563548,39.76,2630.3,2630.2,23.14473451]
[1749066563943,41.6294,2630.3,2630.2,23.14473451]
[1749066564848,41.6294,2630.3,2630.2,23.13673451]
[1749066565148,40.8694,2630.3,2630.2,23.13673451]
[1749066565338,40.8694,2630.3,2630.2,5.39673451]
[1749066565541,40.8694,2630.3,2630.2,23.13373451]
[1749066570047,41.6294,2630.3,2630.2,22.36870451]
[1749066570253,46.6294,2630.3,2630.2,4.63670451]
[1749066570454,41.6294,2630.3,2630.2,4.63670451]
[1749066571147,41.6294,2630.3,2630.2,5.39673451]
[1749066571345,41.6294,2630.3,2630.2,4.63670451]
[1749066571953,41.6294,2630.3,2630.2,5.39673451]
[1749066574147,0.00570451,2630.7,2630.2,5.39673451]
[1749066574148,0.00570451,2630.7,2630.3,1.90002]
[1749066574348,0.00570451,2630.7,2630.6,0.75992]
[1749066574552,39.00570451,2630.7,2630.6,23.21892]
[1749066576757,39.00570451,2630.7,2630.6,23.20792]
[1749066579858,39.76559451,2630.7,2630.6,23.20792]
[1749066580048,39.76559451,2630.7,2630.6,22.448]
[1749066580249,39.76559451,2630.7,2630.6,23.20792]
[1749066580452,3.2078,2631.5,2630.8,1.89966]
[1749066580659,3.2078,2631.5,2631.4,0.75969]
[1749066580852,3.2078,2631.5,2631.4,23.29469]
[1749066581052,42.2078,2631.5,2631.4,23.29469]
[1749066584357,39.0,2631.5,2631.4,23.29469]
[1749066585963,39.0,2631.5,2631.4,23.26069]
[1749066586759,39.0,2631.5,2631.4,23.25669]
[1749066590063,39.06731476,2631.5,2631.4,5.45169]
[1749066590255,39.06731476,2631.5,2631.1,5.3195]
[1749066590256,44.15811476,2631.5,2631.1,5.3195]
[1749066590560,44.15811476,2631.5,2631.2,17.79]
[1749066590758,0.75974,2631.3,2631.2,18.54974]
[1749066591156,1.8993,2631.3,2630.9,0.6575]
[1749066591359,0.7598,2631.1,2631.0,0.7598]
[1749066591758,2.0352,2631.1,2631.0,0.7598]
[1749066591952,2.6449,2631.1,2631.0,0.7598]
[1749066592963,41.6449,2631.1,2631.0,0.7598]
[1749066594465,40.8851,2631.1,2631.0,0.7598]
[1749066595467,41.64487,2631.1,2631.0,0.7598]
[1749066596867,41.64487,2631.1,2630.9,17.775]
[1749066597165,41.64487,2631.1,2631.0,0.7598]
[1749066597462,41.64487,2631.1,2630.9,17.775]
[1749066597670,0.7598,2631.0,2630.9,18.53481]
[1749066598365,39.7598,2631.0,2630.9,0.75981]
[1749066598568,39.7598,2631.0,2630.9,18.51181]
[1749066598872,39.7598,2631.0,2630.9,18.51183]
[1749066600168,39.0,2631.0,2630.5,0.3802]
[1749066600470,0.75995,2630.5,2630.4,0.3802]
[1749066601169,2.04225,2630.5,2630.4,0.3802]
[1749066601364,0.76001,2630.3,2630.2,18.15890451]
[1749066601564,3.96781,2630.3,2630.2,18.15890451]
[1749066601966,42.96781,2630.3,2630.2,18.15890451]
[1749066602267,42.2078,2630.3,2630.2,18.91893451]
[1749066602467,39.0,2630.3,2630.2,18.91893451]
[1749066603779,39.0,2630.3,2630.2,20.42935118]
[1749066604282,39.0,2630.3,2630.2,18.91893451]
[1749066604467,39.0,2630.3,2630.2,20.42935118]
[1749066605277,39.06731476,2630.3,2630.2,20.42935118]
[1749066606365,39.06731476,2630.3,2630.2,23.63715118]
[1749066607068,39.82732476,2630.3,2630.2,1.89632118]
[1749066607273,39.82732476,2630.3,2630.2,5.08890451]
[1749066607668,43.03512476,2630.3,2630.2,0.00570451]
[1749066607876,44.84802476,2630.3,2630.2,0.00570451]
[1749066609769,49.08801476,2630.3,2629.7,5.46318]
[1749066609970,0.76005,2630.2,2629.9,0.3802]
[1749066610268,39.67531476,2630.3,2629.9,0.3802]
[1749066610478,0.76005,2630.2,2630.1,0.76005]
[1749066610667,0.76005,2630.2,2630.1,18.52205]
[1749066611270,0.76005,2630.2,2630.1,17.762]
[1749066611570,0.76005,2630.2,2630.1,18.52206]
[1749066611772,0.76005,2630.2,2630.1,17.762]
[1749066612075,0.76005,2630.2,2630.1,18.52206]
[1749066613076,40.43533476,2630.3,2630.2,0.76003]
[1749066613970,39.06731476,2630.3,2630.2,0.76003]
[1749066614169,39.82731476,2630.3,2630.2,0.76003]
[1749066614774,39.06731476,2630.3,2630.2,0.76003]
[1749066615071,39.82732476,2630.3,2630.2,0.76003]
[1749066615270,0.76003,2630.2,2630.1,5.46306]
[1749066615477,0.76003,2630.2,2630.1,23.20306]
[1749066615775,0.76003,2630.2,2629.9,1.03370451]
[1749066615776,0.76009,2630.0,2629.9,0.00570451]
[1749066616374,2.06219,2630.0,2629.9,0.00570451]
[1749066617471,46.06219,2630.0,2629.9,0.00570451]
[1749066618167,0.76027,2629.4,2629.3,0.76027]
[1749066618372,0.76029,2629.3,2629.2,8.5717]
[1749066618576,0.76029,2629.3,2629.2,4.704]
[1749066618780,39.76029,2629.3,2629.2,23.20632]
[1749066622076,39.76029,2629.3,2629.2,22.446]
[1749066623077,39.0,2629.3,2629.2,23.20632]
[1749066623377,0.76019,2629.7,2629.6,0.76019]
[1749066623575,0.76019,2629.7,2629.6,18.50219]
[1749066623774,0.76019,2629.7,2629.6,17.742]
[1749066624366,39.36019,2629.7,2629.6,17.742]
[1749066627680,39.36019,2629.7,2629.6,23.20621]
[1749066627681,38.6,2629.7,2629.6,23.20621]
[1749066629577,38.6,2629.7,2629.6,28.20621]
[1749066629879,38.6,2629.7,2629.6,23.20621]
[1749066634391,39.36018,2629.7,2629.6,4.704]
[1749066634697,39.36018,2629.7,2629.6,22.425]
[1749066635691,39.42749476,2629.7,2629.6,23.18521]
[1749066637795,40.56780476,2629.7,2629.3,4.687]
[1749066637996,0.76027,2629.4,2629.3,5.44729]
[1749066638195,0.76027,2629.4,2629.3,23.16929]
[1749066639501,0.76026,2629.5,2629.4,0.76025]
[1749066639890,0.06731476,2629.7,2629.6,0.76021]
[1749066640097,0.06731476,2629.7,2629.6,20.00441853]
[1749066640501,38.66731476,2629.7,2629.6,21.32981853]
[1749066642495,38.66731476,2629.7,2629.6,24.53761853]
[1749066644001,38.66731476,2629.7,2629.6,21.32981853]
[1749066646302,39.42749476,2629.7,2629.6,1.51320853]
[1749066646506,0.76021,2629.6,2629.5,1.51320853]
[1749066646704,1.41941,2629.6,2629.5,17.706]
[1749066647010,0.76026,2629.4,2629.3,6.20020853]
[1749066647209,0.76026,2629.4,2629.3,22.392]
[1749066648004,0.76026,2629.4,2629.3,23.15229]
[1749066649110,0.76026,2629.5,2629.4,0.76025]
[1749066649306,1.303,2629.6,2629.5,0.76024]
[1749066650208,2.06321,2629.6,2629.4,2.27344853]
[1749066650504,2.06321,2629.6,2629.5,0.76024]
[1749066651112,1.303,2629.6,2629.5,0.76024]
[1749066651309,39.3602,2629.7,2629.6,0.76021]
[1749066651510,39.3602,2629.7,2629.6,18.44621]
[1749066653607,39.3602,2629.7,2629.4,3.41387853]
[1749066653608,0.76021,2629.6,2629.5,0.76022]
[1749066653806,2.00501,2629.6,2629.5,18.43622]
[1749066654501,39.3602,2629.7,2629.6,0.76021]
[1749066654910,39.3602,2629.7,2629.6,18.43121]
[1749066656208,0.76024,2629.5,2629.4,1.51320853]
[1749066656410,0.76024,2629.5,2629.3,1.13863841]
[1749066656411,3.2078,2629.5,2629.3,1.13863841]
[1749066656618,3.22056,2629.4,2629.3,1.13863841]
[1749066657314,3.22056,2629.4,2629.3,1.89892841]
[1749066657509,3.22056,2629.4,2629.3,1.13863841]
[1749066657907,3.22056,2629.4,2629.3,1.89892841]
[1749066658408,1.95956,2629.4,2629.3,1.89892841]
[1749066659306,1.95956,2629.4,2629.3,0.76029]
[1749066659616,1.1993,2629.4,2629.3,0.76029]
[1749066660307,1.95957,2629.4,2629.3,0.76029]
[1749066661307,1.95957,2629.4,2629.3,18.40829]
[1749066662619,1.95957,2629.4,2629.3,17.648]
[1749066662918,3.28607,2629.4,2629.3,18.40829]
[1749066664212,1.95957,2629.4,2629.3,18.40829]
[1749066666116,2.02688476,2629.4,2629.3,18.40829]
[1749066666917,2.02688476,2629.4,2629.3,17.648]
[1749066667114,0.76029,2629.3,2629.2,0.76032]
[1749066667417,0.76029,2629.3,2629.2,18.38332]
[1749066668616,0.76029,2629.3,2629.2,23.01832]
[1749066669408,0.76029,2629.3,2629.2,23.01632]
[1749066669611,2.01669,2629.3,2629.2,4.641]
[1749066670622,0.76035,2629.1,2629.0,1.1437556]
[1749066670814,3.96815,2629.1,2629.0,0.00570451]
[1749066671012,42.56815,2629.1,2629.0,0.00570451]
[1749066672917,42.56815,2629.1,2629.0,0.76608451]
[1749066676725,42.56815,2629.1,2629.0,0.00570451]
[1749066677021,42.56815,2629.1,2629.0,17.59570451]
[1749066677224,42.56815,2629.1,2629.0,18.35608451]
[1749066677426,42.56815,2629.1,2629.0,17.59570451]
[1749066678622,42.56815,2629.1,2629.0,0.00570451]
[1749066678926,42.56815,2629.1,2629.0,17.58770451]
[1749066679421,42.56815,2629.1,2629.0,0.00570451]
[1749066679629,0.76053,2628.5,2628.4,6.15520853]
[1749066679824,0.76055,2628.4,2628.3,19.85778853]
[1749066680025,0.76055,2628.4,2628.3,18.34458]
[1749066680325,39.36055,2628.4,2628.3,18.34458]
[1749066680827,38.6,2628.4,2628.3,18.34458]
[1749066681327,38.6,2628.4,2628.3,21.48485754]
[1749066681529,38.6,2628.4,2628.3,21.16218853]
[1749066682331,38.6,2628.4,2628.3,21.48475019]
[1749066682532,39.36055,2628.4,2628.3,21.48475019]
[1749066682735,39.36055,2628.4,2628.3,18.33558]
[1749066683034,39.36057,2628.4,2628.3,18.33458]
[1749066684133,39.36057,2628.4,2628.2,0.6588]
[1749066684134,0.76058,2628.3,2628.2,1.41939]
[1749066684534,0.76058,2628.3,2628.2,0.6588]
[1749066684734,0.76058,2628.3,2628.2,18.2288]
[1749066684930,0.76058,2628.3,2628.2,0.6588]
[1749066685133,0.76061,2628.2,2628.1,7.85550451]
[1749066685327,0.76061,2628.2,2628.1,26.18714451]
[1749066686038,0.76061,2628.3,2628.2,0.7606]
[1749066686529,0.76061,2628.3,2628.2,18.3276]
[1749066686735,0.76061,2628.3,2628.2,17.567]
[1749066686934,0.76061,2628.3,2628.2,18.32761]
[1749066687131,0.76061,2628.3,2628.2,0.76061]
[1749066687434,0.76061,2628.2,2628.1,5.40832451]
[1749066687631,0.76061,2628.2,2628.1,22.97132451]
[1749066690033,0.76061,2628.2,2628.1,22.59112451]
[1749066693232,38.6,2628.4,2628.3,0.76058]
[1749066693732,38.6,2628.4,2628.2,0.76059]
[1749066693942,0.76061,2628.3,2628.2,0.76059]
[1749066694637,0.76061,2628.3,2628.1,21.83050451]
[1749066694638,0.76061,2628.2,2628.1,4.26750451]
[1749066694935,0.76061,2628.2,2628.1,22.57314451]
[1749066695641,0.82792476,2628.2,2628.1,22.57314451]
[1749066696540,0.76061,2628.2,2628.1,5.02814451]
[1749066696742,0.76061,2628.2,2628.1,22.57014451]
[1749066697643,0.82792476,2628.2,2628.1,22.57014451]
[1749066698836,0.82792476,2628.2,2628.1,4.26750451]
[1749066699040,0.82792476,2628.2,2628.1,21.80150451]
[1749066699246,1.47182476,2628.2,2628.1,21.80150451]
[1749066699839,1.47182476,2628.2,2628.1,0.00570451]
[1749066700441,2.75112476,2628.2,2628.1,0.00570451]